bitfinex/quotes_SOLUSD_20250912
["timestamp","ask_amount","ask_price","bid_price","bid_amount"]
[1757700943653,0.16,240.79,240.78,32.06]
[1757700943848,0.16,240.79,240.75,13.59559401]
[1757700944061,0.16,240.79,240.78,26.0]
[1757700945858,0.16,240.79,240.78,39.59559401]
[1757700947079,0.16,240.79,240.78,71.65559401]
[1757700947878,0.1,240.89,240.79,13.59559401]
[1757700948185,0.1,240.89,240.82,26.0]
[1757700948385,0.1,240.89,240.83,32.06]
[1757700952657,0.1,240.89,240.83,32.3676]
[1757700953479,0.1,240.89,240.83,0.3076]
[1757700953665,0.1,240.89,240.84,32.04]
[1757700958174,0.16,240.89,240.82,26.0]
[1757700958371,0.30216157,240.89,240.83,32.74]
[1757700958775,0.30216157,240.89,240.84,0.7]
[1757700958973,0.30216157,240.89,240.85,0.7]
[1757700959288,0.30216157,240.89,240.86,32.04]
[1757700961494,0.16,240.89,240.87,0.7]
[1757700961794,0.16,240.89,240.86,32.04]
[1757700961967,0.16,240.89,240.82,26.0]
[1757700961968,0.16,240.89,240.87,32.74]
[1757700962487,0.16,240.89,240.88,0.7]
[1757700962888,0.16,240.89,240.87,32.04]
[1757700963194,0.16,240.89,240.88,0.7]
[1757700965389,0.16,240.89,240.87,32.04]
[1757700965580,0.16,240.89,240.88,0.7]
[1757700965888,0.16,240.89,240.85,0.7]
[1757700966067,0.14216157,240.87,240.86,32.04]
[1757700966268,0.82216157,240.87,240.86,32.04]
[1757700967005,0.14216157,240.87,240.86,32.04]
[1757700967587,0.14216157,240.87,240.86,32.74]
[1757700967977,0.14216157,240.87,240.86,32.04]
[1757700968174,0.16,240.89,240.84,0.7]
[1757700968381,0.16,240.89,240.85,32.04]
[1757700968708,0.84,240.89,240.85,32.04]
[1757700969475,0.68,240.88,240.82,0.7]
[1757700969777,0.16,240.89,240.82,0.7]
[1757700969980,0.16,240.89,240.78,13.62559401]
[1757700969981,0.14216157,240.88,240.79,0.7]
[1757700970178,0.84,240.89,240.8,29.54]
[1757700970179,0.14216157,240.86,240.8,29.54]
[1757700970399,0.14216157,240.84,240.8,29.54]
[1757700970876,0.82216157,240.84,240.8,29.54]
[1757700971583,0.14216157,240.82,240.78,0.03]
[1757700971896,4.19291757,240.85,240.78,0.03]
[1757700972082,0.14216157,240.85,240.78,32.07]
[1757700972714,0.14216157,240.85,240.79,0.7]
[1757700973403,0.16,240.89,240.81,26.0]
[1757700973583,0.16,240.89,240.85,26.0]
[1757700973786,0.16,240.89,240.86,32.04]
[1757700974185,0.16,240.89,240.84,0.7]
[1757700974492,0.14216157,240.88,240.85,32.04]
[1757700975488,0.14216157,240.88,240.86,0.7]
[1757700975699,0.14216157,240.88,240.87,0.7]
[1757700976294,0.16,240.89,240.87,0.7]
[1757700976503,0.16,240.89,240.85,32.04]
[1757700976695,0.16,240.89,240.88,0.7]
[1757700977297,0.16,240.89,240.86,0.7]
[1757700977591,0.16,240.89,240.87,0.7]
[1757700977794,0.16,240.89,240.85,32.04]
[1757700978102,0.16,240.89,240.88,0.7]
[1757700979009,0.16,240.89,240.84,0.66]
[1757700979010,0.14216157,240.88,240.84,0.66]
[1757700979202,0.14216157,240.88,240.85,32.04]
[1757700979385,0.14216157,240.88,240.85,32.7]
[1757700979713,0.14216157,240.88,240.86,0.66]
[1757700980087,0.14216157,240.88,240.85,32.04]
[1757700980289,0.14216157,240.88,240.86,32.04]
[1757700980290,0.68,240.87,240.86,32.04]
[1757700980782,0.14216157,240.88,240.86,32.04]
[1757700982406,0.16,240.89,240.86,32.04]
[1757700983698,0.16,240.89,240.87,0.66]
[1757700983897,0.16,240.89,240.86,32.71]
[1757700985217,0.82,240.89,240.87,32.04]
[1757700985416,0.96216157,240.89,240.88,32.04]
[1757700985719,0.30216157,240.89,240.88,32.04]
[1757700986689,0.16,240.89,240.88,32.71]
[1757700987494,20.66,240.98,240.88,32.71]
[1757700987495,20.0,240.98,240.88,32.71]
[1757700987697,20.0,240.98,240.89,0.67]
[1757700988288,3.45122218,240.97,240.89,32.04]
[1757700988493,0.14216157,240.95,240.89,32.04]
[1757700988696,0.80216157,240.95,240.89,32.04]
[1757700990603,0.80216157,240.95,240.89,32.71]
[1757700991523,0.80216157,240.96,240.9,0.67]
[1757700991714,3.59338375,240.96,240.9,0.67]
[1757700991915,0.80216157,240.96,240.9,0.67]
[1757700992715,0.80216157,240.96,240.83,12.4535586]
[1757700992716,0.14216157,240.94,240.91,32.02]
[1757700992917,0.80216157,240.94,240.92,32.02]
[1757700995606,0.14216157,240.92,240.84,30.82017413]
[1757700995919,0.14216157,240.9,240.84,32.04]
[1757700996398,0.14216157,240.9,240.85,0.67]
[1757700996599,0.14216157,240.9,240.84,32.04]
[1757700996821,0.14216157,240.9,240.85,0.67]
[1757700997005,0.14216157,240.9,240.86,0.67]
[1757700997514,0.14216157,240.9,240.87,0.67]
[1757700997894,0.14216157,240.91,240.87,0.67]
[1757701000423,0.14216157,240.93,240.84,32.3476]
[1757701000599,0.06,240.94,240.88,0.67]
[1757701005122,0.06,240.94,240.89,26.0]
[1757701005329,0.06,240.94,240.9,32.69]
[1757701005627,0.06,240.94,240.91,0.67]
[1757701006825,0.06,240.94,240.92,32.02]
[1757701007015,0.06,240.94,240.85,26.0]
[1757701007016,0.06,240.94,240.9,0.68]
[1757701007207,0.06,240.94,240.91,32.02]
[1757701007807,0.06,240.94,240.85,0.68]
[1757701007808,0.14216157,240.92,240.85,0.68]
[1757701008024,0.83216157,240.92,240.86,32.02]
[1757701008434,0.14216157,240.9,240.87,32.02]
[1757701009229,0.14216157,240.9,240.88,0.68]
[1757701009629,0.06,240.94,240.88,0.68]
[1757701016532,0.06,240.94,240.88,4.83144416]
[1757701016720,0.06,240.94,240.89,0.66]
[1757701018540,0.06,240.94,240.89,0.9676]
[1757701019338,0.06,240.94,240.9,0.66]
[1757701021238,0.06,240.94,240.9,26.66]
[1757701021437,0.06,240.94,240.92,26.0]
[1757701021618,0.06,240.94,240.93,32.02]
[1757701021918,0.06,240.94,240.93,32.68]
[1757701026421,20.0,240.98,240.93,36.83058315]
[1757701026648,20.0,240.98,240.94,0.66]
[1757701027136,20.0,240.98,240.96,26.0]
[1757701027332,20.0,240.98,240.97,32.68]
[1757701028250,20.81216157,240.98,240.94,26.0]
[1757701028542,0.81216157,240.97,240.93,32.02]
[1757701029131,0.14216157,240.97,240.93,32.02]
[1757701029354,0.14216157,240.97,240.93,32.68]
[1757701029648,0.14216157,240.97,240.93,32.02]
[1757701029827,0.14216157,240.97,240.94,0.66]
[1757701030140,0.14216157,240.97,240.95,0.66]
[1757701030348,0.14216157,240.97,240.93,32.68]
[1757701030534,0.14216157,240.97,240.94,0.66]
[1757701031046,0.14216157,240.97,240.89,26.3076]
[1757701031235,0.14216157,240.97,240.93,26.0]
[1757701031438,0.14216157,240.97,240.94,32.02]
[1757701031639,0.14216157,240.97,240.95,32.02]
[1757701031829,0.14216157,240.97,240.93,26.66]
[1757701032027,0.14216157,240.97,240.89,0.3076]
[1757701032028,0.14216157,240.97,240.91,26.0]
[1757701032253,0.14216157,240.95,240.91,26.0]
[1757701032545,0.14216157,240.95,240.92,32.02]
[1757701032744,0.81216157,240.95,240.92,32.02]
[1757701034142,0.81216157,240.95,240.9,0.66]
[1757701034452,0.81216157,240.95,240.93,32.02]
[1757701035825,0.81216157,240.97,240.93,32.02]
[1757701036028,0.14216157,240.95,240.93,32.02]
[1757701037451,0.14216157,240.95,240.9,0.66]
[1757701037656,0.14216157,240.93,240.88,0.03]
[1757701037955,0.14216157,240.91,240.88,0.03]
[1757701038254,0.67,240.9,240.88,0.03]
[1757701038625,0.14216157,240.89,240.88,0.03]
[1757701039025,0.81216157,240.89,240.88,0.03]
[1757701039439,0.81216157,240.89,240.88,0.3376]
[1757701040562,4.96343393,240.89,240.88,0.3376]
[1757701041476,18.55902794,240.89,240.88,0.3376]
[1757701042944,0.67,240.93,240.88,0.3376]
[1757701043162,0.67,240.92,240.88,0.3376]
[1757701043350,0.67,240.91,240.88,0.3376]
[1757701043854,0.14216157,240.89,240.88,0.3376]
[1757701044061,0.84216157,240.89,240.88,0.3376]
[1757701044681,4.99343393,240.89,240.88,0.3376]
[1757701047042,30.99343393,240.89,240.88,0.3376]
[1757701047245,26.84216157,240.89,240.88,0.3376]
[1757701049551,4.99343393,240.89,240.88,0.3376]
[1757701050535,0.7,240.94,240.88,1.0476]
[1757701051043,0.14216157,240.93,240.88,1.0476]
[1757701051238,0.7,240.93,240.88,1.0476]
[1757701051650,0.14216157,240.92,240.88,1.0476]
[1757701052050,0.14216157,240.92,240.88,0.3376]
[1757701052361,0.14216157,240.92,240.88,1.0476]
[1757701052557,13.59559401,240.91,240.88,0.3376]
[1757701052857,26.14216157,240.9,240.88,0.3376]
[1757701053242,30.29326239,240.9,240.88,0.3376]
[1757701053442,30.99326239,240.9,240.88,0.3376]
[1757701053647,0.84216157,240.89,240.88,0.3376]
[1757701054842,4.99343393,240.89,240.88,0.3376]
[1757701055259,0.14216157,240.89,240.88,0.3376]
[1757701055449,0.14216157,240.89,240.88,1.0476]
[1757701056558,4.15058539,240.93,240.88,1.0476]
[1757701056756,0.14216157,240.93,240.89,0.71]
[1757701056956,0.14216157,240.93,240.9,0.71]
[1757701057343,0.14216157,240.93,240.91,0.71]
[1757701057651,0.14216157,240.93,240.89,0.71]
[1757701058252,0.14216157,240.93,240.9,0.71]
[1757701058456,0.14216157,240.93,240.91,0.71]
[1757701058752,0.14216157,240.94,240.91,0.71]
[1757701058946,26.06,240.95,240.92,0.71]
[1757701058947,0.06,240.95,240.92,0.71]
[1757701059153,0.06,240.95,240.93,0.71]
[1757701059644,0.06,240.95,240.94,0.71]
[1757701061963,0.06,240.95,240.93,0.3076]
[1757701062141,0.06,240.95,240.93,1.0176]
[1757701062871,0.06,240.95,240.93,0.3076]
[1757701063962,0.06,240.95,240.93,1.0176]
[1757701064165,0.06,240.95,240.94,0.71]
[1757701070955,0.06,240.95,240.94,0.74]
[1757701073779,0.72,240.95,240.94,0.03]
[1757701073970,5.0124002,240.95,240.94,0.03]
[1757701075875,0.20216157,240.95,240.94,0.03]
[1757701076560,5.0124002,240.95,240.94,0.03]
[1757701077468,0.86216157,240.95,240.94,0.03]
[1757701077868,0.86216157,240.95,240.94,0.68]
[1757701077869,0.20216157,240.95,240.94,0.68]
[1757701078065,0.20216157,240.95,240.94,0.03]
[1757701078374,0.06,240.95,240.94,0.68]
[1757701082464,0.06,240.95,240.94,0.9876]
[1757701082883,0.06,240.95,240.94,33.0076]
[1757701086361,0.06,240.95,240.94,0.9876]
[1757701086688,0.06,240.95,240.94,0.3376]
[1757701087184,0.06,240.95,240.94,23.7076]
[1757701088687,0.06,240.95,240.94,0.3376]
[1757701088986,0.06,240.95,240.94,33.0276]
[1757701089764,0.06,240.95,240.94,0.3376]
[1757701090502,0.86216157,240.95,240.94,0.3376]
[1757701090667,0.20216157,240.95,240.94,0.3376]
[1757701092493,0.20216157,240.95,240.94,0.9876]
[1757701093072,0.06,240.95,240.94,0.9876]
[1757701095605,0.06,240.95,240.94,0.3376]
[1757701096196,0.06,240.95,240.94,32.3776]
[1757701096897,0.06,240.95,240.94,33.0276]
[1757701097382,20.0,240.98,240.94,33.0276]
[1757701097692,20.0,240.98,240.95,0.65]
[1757701099086,20.0,240.98,240.94,32.07]
[1757701099277,20.0,240.98,240.96,0.65]
[1757701099482,20.0,240.98,240.97,0.65]
[1757701100491,20.0,240.98,240.95,0.65]
[1757701100792,0.14216157,240.97,240.94,0.03]
[1757701101095,0.14216157,240.97,240.95,32.02]
[1757701103493,0.14216157,240.97,240.94,0.03]
[1757701103694,0.14216157,240.97,240.96,32.04]
[1757701104289,0.14216157,240.97,240.96,32.76]
[1757701104603,20.0,240.98,240.96,32.76]
[1757701104794,20.14216157,240.98,240.97,0.72]
[1757701105099,20.14216157,240.98,240.96,32.3476]
[1757701105300,20.14216157,240.98,240.96,0.3076]
[1757701105494,20.14216157,240.98,240.97,32.04]
[1757701105887,20.14216157,240.98,240.96,0.3076]
[1757701106102,20.14216157,240.98,240.97,32.04]
[1757701106908,0.14216157,240.97,240.96,0.3076]
[1757701107079,0.84216157,240.97,240.96,32.3476]
[1757701107274,0.14216157,240.97,240.96,32.3476]
[1757701107999,0.14216157,240.97,240.96,0.3076]
[1757701110907,0.84216157,240.97,240.96,32.3476]
[1757701111288,0.14216157,240.97,240.96,32.3476]
[1757701113726,0.14216157,240.97,240.96,33.0676]
[1757701115102,0.14216157,240.97,240.96,32.3476]
[1757701116607,0.14216157,240.97,240.96,0.3076]
[1757701116991,0.84216157,240.97,240.96,0.3076]
[1757701118188,0.14216157,240.97,240.96,0.3076]
[1757701119015,0.84216157,240.97,240.96,0.3076]
[1757701120517,0.14216157,240.97,240.96,0.3076]
[1757701125125,0.14216157,240.97,240.96,1.0276]
[1757701126598,0.14216157,240.97,240.96,0.3076]
[1757701127104,0.82216157,240.97,240.96,0.3076]
[1757701128124,4.97205574,240.97,240.96,0.3076]
[1757701128423,18.56764975,240.97,240.96,0.3076]
[1757701128633,17.21116326,240.97,240.96,0.3076]
[1757701128812,0.82216157,240.97,240.96,0.3076]
[1757701132323,4.97205574,240.97,240.96,0.3076]
[1757701132504,4.97205574,240.97,240.94,0.03]
[1757701132505,13.59559401,240.96,240.94,0.03]
[1757701132702,16.53088891,240.95,240.94,0.03]
[1757701132921,16.53088891,240.95,240.91,0.03]
[1757701132922,39.73775558,240.92,240.91,0.03]
[1757701133132,42.53088891,240.92,240.91,0.03]
[1757701133423,43.21088891,240.92,240.91,0.03]
[1757701133632,13.73775558,240.91,240.88,0.03]
[1757701133812,16.52979092,240.91,240.88,0.03]
[1757701134123,0.81216157,240.9,240.88,0.03]
[1757701134702,4.96326161,240.9,240.88,0.03]
[1757701134907,0.14216157,240.9,240.88,0.03]
[1757701135522,0.81216157,240.9,240.88,0.03]
[1757701136020,4.96326161,240.9,240.88,0.03]
[1757701136535,4.96326161,240.9,240.89,0.4113]
[1757701137132,30.96326161,240.9,240.89,0.4113]
[1757701138735,44.55885562,240.9,240.89,0.4113]
[1757701139031,13.73775558,240.89,240.88,0.03]
[1757701139214,39.73775558,240.87,240.86,0.03]
[1757701139528,0.14216157,240.86,240.76,0.03]
[1757701139731,0.14216157,240.84,240.76,0.03]
[1757701140028,0.14216157,240.82,240.79,0.74]
[1757701140233,0.14216157,240.82,240.79,0.03]
[1757701140614,0.14216157,240.82,240.79,0.74]
[1757701140816,0.14216157,240.82,240.79,0.03]
[1757701141223,0.14216157,240.8,240.79,0.03]
[1757701141411,0.81216157,240.8,240.79,0.03]
[1757701141613,0.14216157,240.8,240.79,0.03]
[1757701142234,13.59559401,240.87,240.79,0.74]
[1757701142617,0.14216157,240.86,240.79,0.74]
[1757701143942,0.14216157,240.84,240.79,0.03]
[1757701144232,0.14216157,240.82,240.79,0.03]
[1757701144827,0.14216157,240.8,240.79,0.03]
[1757701145210,0.81216157,240.8,240.79,0.03]
[1757701145634,26.81216157,240.8,240.79,0.03]
[1757701147112,4.29498549,240.8,240.79,0.03]
[1757701147328,26.14216157,240.8,240.79,0.74]
[1757701147518,26.14216157,240.8,240.79,0.03]
[1757701148654,40.40775558,240.8,240.79,0.03]
[1757701148934,44.5605795,240.8,240.79,0.03]
[1757701151934,76.7805795,240.8,240.79,0.03]
[1757701153433,43.8905795,240.8,240.79,0.03]
[1757701153632,17.80763928,240.85,240.79,0.74]
[1757701153827,0.06,240.85,240.79,0.74]
[1757701154236,0.20216157,240.85,240.79,0.74]
[1757701154433,4.21199255,240.85,240.79,0.74]
[1757701154747,0.14216157,240.84,240.79,0.74]
[1757701154944,0.14216157,240.84,240.8,0.71]
[1757701155147,4.29438149,240.84,240.79,0.74]
[1757701155522,4.96438149,240.84,240.79,0.74]
[1757701155723,0.14216157,240.84,240.79,0.03]
[1757701156042,4.1521657,240.84,240.8,0.71]
[1757701156225,30.1521657,240.84,240.8,0.71]
[1757701156431,0.14216157,240.83,240.81,0.71]
[1757701156632,0.14216157,240.83,240.79,0.74]
[1757701156839,0.14216157,240.83,240.79,0.03]
[1757701157239,0.14216157,240.83,240.79,0.74]
[1757701158143,0.14216157,240.83,240.8,0.71]
[1757701158340,0.14216157,240.84,240.8,0.71]
[1757701159348,0.14216157,240.84,240.81,0.71]
[1757701160023,0.14216157,240.84,240.82,0.71]
[1757701160233,0.14216157,240.84,240.79,0.74]
[1757701160539,0.20216157,240.85,240.8,0.71]
[1757701160745,0.20216157,240.85,240.79,0.03]
[1757701160947,4.35413938,240.85,240.8,0.71]
[1757701161557,5.02413938,240.85,240.8,0.71]
[1757701162072,18.61973339,240.85,240.8,0.71]
[1757701162367,18.61973339,240.85,240.79,0.03]
[1757701162368,17.8905795,240.8,240.79,0.03]
[1757701162531,20.47961313,240.8,240.79,0.03]
[1757701162729,21.14961313,240.8,240.79,0.03]
[1757701163145,50.7805795,240.8,240.79,0.03]
[1757701163530,50.1105795,240.8,240.79,0.03]
[1757701163869,50.7805795,240.8,240.79,0.03]
[1757701164326,18.5605795,240.8,240.79,0.03]
[1757701164525,50.7805795,240.8,240.79,0.03]
[1757701165362,50.1105795,240.8,240.79,0.03]
[1757701166028,50.0905795,240.8,240.79,0.03]
[1757701167253,17.8905795,240.8,240.79,0.03]
[1757701167427,50.0905795,240.8,240.79,0.03]
[1757701168833,50.8105795,240.8,240.79,0.03]
[1757701169353,50.0905795,240.8,240.79,0.03]
[1757701170465,18.6105795,240.8,240.79,0.03]
[1757701170767,53.37961313,240.8,240.79,0.03]
[1757701171961,53.37961313,240.8,240.77,0.03]
[1757701171962,0.14216157,240.79,240.77,0.03]
[1757701172268,19.10370939,240.79,240.77,0.03]
[1757701172468,13.73775558,240.78,240.77,0.03]
[1757701172649,49.97327179,240.78,240.77,0.03]
[1757701172844,46.63775558,240.78,240.77,0.03]
[1757701173170,16.51547105,240.78,240.77,0.03]
[1757701173464,49.97327179,240.78,240.77,0.03]
[1757701173859,50.07092444,240.78,240.77,0.03]
[1757701174248,17.89092444,240.78,240.77,0.03]
[1757701174449,50.07092444,240.78,240.77,0.03]
[1757701174948,32.18,240.8,240.77,0.7]
[1757701175357,32.18,240.8,240.78,0.67]
[1757701175553,0.14216157,240.79,240.78,0.67]
[1757701175762,0.14216157,240.79,240.77,0.03]
[1757701176071,4.29522457,240.79,240.77,0.7]
[1757701176567,0.14216157,240.79,240.77,0.7]
[1757701178245,0.14216157,240.8,240.77,0.03]
[1757701178475,32.16,240.82,240.78,0.67]
[1757701178662,0.14216157,240.8,240.78,0.67]
[1757701179070,0.14216157,240.8,240.79,0.67]
[1757701181294,0.06,240.8,240.79,0.67]
[1757701185689,0.06,240.8,240.79,4.82299638]
[1757701185854,0.06,240.8,240.79,44.41859039]
[1757701186278,0.06,240.8,240.79,76.55859039]
[1757701187069,0.06,240.83,240.82,26.0]
[1757701187278,0.06,240.88,240.83,4.1523066]
[1757701187461,0.06,240.88,240.83,4.8323066]
[1757701187661,0.06,240.88,240.84,32.84]
[1757701188075,0.06,240.88,240.82,26.0]
[1757701188076,0.06,240.88,240.85,32.84]
[1757701188584,0.06,240.88,240.86,0.68]
[1757701190795,0.06,240.88,240.87,32.14]
[1757701191197,0.06,240.88,240.87,32.82]
[1757701192569,0.06,240.88,240.87,32.14]
[1757701192768,0.06,240.88,240.87,32.12]
[1757701192965,0.06,240.88,240.82,26.0]
[1757701192966,0.06,240.88,240.85,0.68]
[1757701193164,0.06,240.88,240.82,0.68]
[1757701193477,0.06,240.88,240.83,32.14]
[1757701193677,0.14216157,240.87,240.83,32.14]
[1757701193875,0.14216157,240.87,240.82,0.68]
[1757701194085,0.14216157,240.87,240.83,0.69]
[1757701194881,0.14216157,240.87,240.82,32.14]
[1757701194882,0.14216157,240.87,240.84,0.69]
[1757701195970,0.06,240.88,240.84,0.69]
[1757701196796,0.06,240.88,240.83,32.14]
[1757701197090,0.14216157,240.86,240.8,0.69]
[1757701197295,0.14216157,240.86,240.81,32.14]
[1757701197593,0.85216157,240.86,240.8,0.69]
[1757701197897,0.85216157,240.86,240.8,26.17]
[1757701198882,0.85216157,240.86,240.8,0.69]
[1757701202204,5.00396544,240.86,240.8,0.69]
[1757701202794,0.85216157,240.86,240.8,0.69]
[1757701205179,0.06,240.88,240.8,0.69]
[1757701205410,0.20216157,240.88,240.8,0.69]
[1757701206885,0.14216157,240.86,240.8,0.69]
[1757701207299,9.05948031,240.86,240.8,0.69]
[1757701207600,5.0039641,240.86,240.8,0.69]
[1757701208385,0.14216157,240.86,240.8,0.69]
[1757701211087,0.14216157,240.87,240.8,0.69]
[1757701213204,0.06,240.88,240.8,0.69]
[1757701216110,0.14216157,240.86,240.8,0.69]
[1757701216302,0.85216157,240.86,240.8,0.69]
[1757701216490,0.85216157,240.86,240.8,0.72]
[1757701216689,0.14216157,240.86,240.8,0.72]
[1757701219421,0.06,240.88,240.8,0.72]
[1757701219917,0.06,240.88,240.81,32.1]
[1757701220097,0.06,240.88,240.82,0.72]
[1757701220524,4.2116115,240.88,240.82,0.72]
[1757701220903,4.8616115,240.88,240.82,32.82]
[1757701221226,0.79216157,240.87,240.8,32.11]
[1757701221820,0.79216157,240.87,240.8,32.83]
[1757701222021,4.94387182,240.87,240.8,32.11]
[1757701222322,4.94387182,240.87,240.81,0.72]
[1757701222721,0.79216157,240.87,240.81,0.72]
[1757701222894,0.14216157,240.87,240.81,0.72]
[1757701223218,0.65,240.87,240.81,0.72]
[1757701223800,0.14216157,240.86,240.81,0.72]
[1757701224108,0.14216157,240.86,240.82,0.72]
[1757701224922,0.14216157,240.86,240.83,0.72]
[1757701225915,4.29397615,240.86,240.81,0.72]
[1757701226421,4.29397615,240.86,240.82,0.72]
[1757701227316,0.14216157,240.87,240.82,0.72]
[1757701227520,0.83216157,240.87,240.82,0.72]
[1757701227712,0.14216157,240.87,240.8,32.11]
[1757701227901,0.14216157,240.87,240.82,0.72]
[1757701228102,0.14216157,240.87,240.83,0.72]
[1757701228302,0.14216157,240.87,240.84,0.72]
[1757701228705,0.14216157,240.87,240.85,0.72]
[1757701228912,0.06,240.88,240.85,0.72]
[1757701229721,0.06,240.88,240.86,32.08]
[1757701230102,0.06,240.88,240.87,0.72]
[1757701230309,0.06,240.88,240.87,32.8]
[1757701230516,0.06,240.88,240.87,0.72]
[1757701230916,0.06,240.88,240.87,32.8]
[1757701234130,0.06,240.88,240.87,0.72]
[1757701234336,0.06,240.88,240.87,58.8]
[1757701235215,0.06,240.88,240.87,26.72]
[1757701235538,0.06,240.88,240.87,58.8]
[1757701237139,0.06,240.88,240.87,32.78]
[1757701237506,0.06,240.88,240.87,0.72]
[1757701237732,0.06,240.88,240.87,32.78]
[1757701238609,0.06,240.88,240.87,0.72]
[1757701238911,0.06,240.88,240.87,32.78]
[1757701239328,0.06,240.9,240.87,32.78]
[1757701239512,0.06,240.9,240.88,0.72]
[1757701240619,0.06,240.9,240.89,0.72]
[1757701240825,0.06,240.9,240.89,32.78]
[1757701243350,0.75,240.9,240.85,0.72]
[1757701243635,0.06,240.9,240.86,32.78]
[1757701243819,0.06,240.9,240.83,26.0]
[1757701244024,0.06,240.9,240.84,32.06]
[1757701244542,0.06,240.9,240.84,32.78]
[1757701244923,0.06,240.9,240.84,0.72]
[1757701245133,0.14216157,240.88,240.85,32.06]
[1757701245719,0.14216157,240.88,240.85,32.77]
[1757701245921,0.14216157,240.88,240.85,32.06]
[1757701246120,0.14216157,240.88,240.86,0.71]
[1757701246320,0.14216157,240.88,240.85,32.06]
[1757701246623,0.14216157,240.88,240.86,0.71]
[1757701247746,0.14216157,240.88,240.85,32.06]
[1757701247946,0.14216157,240.88,240.85,32.77]
[1757701248827,0.14216157,240.88,240.85,32.06]
[1757701249028,0.14216157,240.88,240.85,32.77]
[1757701249435,0.14216157,240.88,240.86,0.71]
[1757701251249,0.14216157,240.88,240.87,32.06]
[1757701251452,0.20216157,240.88,240.87,32.06]
[1757701252845,0.14216157,240.87,240.83,0.03]
[1757701253033,0.14216157,240.86,240.83,0.03]
[1757701253231,0.85216157,240.86,240.84,32.06]
[1757701253633,0.14216157,240.86,240.84,32.06]
[1757701255446,0.14216157,240.87,240.84,32.06]
[1757701255945,0.83216157,240.87,240.84,32.06]
[1757701256146,0.14216157,240.87,240.83,0.03]
[1757701256363,0.14216157,240.85,240.83,0.03]
[1757701256557,0.83216157,240.84,240.83,0.03]
[1757701257643,0.14216157,240.84,240.83,0.03]
[1757701258826,0.83216157,240.84,240.83,0.03]
[1757701260238,4.98429576,240.84,240.83,0.03]
[1757701260452,0.83216157,240.84,240.83,0.03]
[1757701260755,0.14216157,240.84,240.83,0.03]
[1757701261481,0.14216157,240.84,240.83,0.71]
[1757701261642,0.14216157,240.84,240.83,0.03]
[1757701264155,0.83216157,240.84,240.83,0.03]
[1757701264527,0.14216157,240.84,240.83,0.03]
[1757701272049,0.06,240.88,240.83,0.71]
[1757701272363,0.06,240.88,240.83,0.03]
[1757701272564,0.14216157,240.86,240.83,0.03]
[1757701272753,0.14216157,240.84,240.83,0.03]
[1757701273463,0.83216157,240.84,240.83,0.03]
[1757701273762,0.14216157,240.84,240.83,0.03]
[1757701275263,0.14216157,240.86,240.83,0.03]
[1757701275662,0.83216157,240.86,240.83,0.03]
[1757701276162,0.14216157,240.84,240.83,0.03]
[1757701276354,0.83216157,240.84,240.83,0.03]